bitfinex/quotes_SOLUSD_20250924
["timestamp","ask_amount","ask_price","bid_price","bid_amount"]
[1758693617309,1.90953574,210.02,210.01,0.66]
[1758693618015,159.98,210.09,210.01,0.66]
[1758693618219,1.51028496,210.04,210.01,0.66]
[1758693618499,1.51028496,210.04,210.02,0.66]
[1758693618699,1.51028496,210.05,210.02,0.66]
[1758693619091,1.51028496,210.03,210.0,37.9]
[1758693619280,4.76062371,210.06,210.0,0.66]
[1758693619281,4.76193274,210.04,210.0,0.66]
[1758693619484,1.51028496,210.02,210.0,0.66]
[1758693620417,6.27175031,210.02,209.97,0.66]
[1758693620597,1.51028496,210.0,209.97,37.9]
[1758693621123,1.51028496,210.0,209.97,37.94]
[1758693621495,1.51028496,210.0,209.98,0.7]
[1758693622914,4.76193274,210.01,209.98,0.7]
[1758693623407,4.76193274,210.01,209.96,0.9]
[1758693623998,1.51028496,209.97,209.96,0.2]
[1758693624386,11.03402012,209.97,209.96,0.2]
[1758693624603,16.66599745,210.01,209.96,0.2]
[1758693624604,1.51028496,209.99,209.96,0.9]
[1758693624908,15.83248676,210.0,209.97,0.7]
[1758693625202,4.76133675,210.03,209.97,0.7]
[1758693625203,1.51028496,210.03,209.97,0.7]
[1758693625392,1.51028496,210.01,209.97,0.7]
[1758693625589,6.47307057,210.01,209.97,0.7]
[1758693626703,6.47307057,210.01,209.98,37.94]
[1758693626908,6.47307057,210.01,209.99,0.7]
[1758693627610,4.96278561,210.01,209.99,0.7]
[1758693627817,4.96278561,210.01,209.97,4.76255749]
[1758693627818,4.96278561,210.01,210.0,0.7]
[1758693628119,4.96278561,210.01,209.98,0.7]
[1758693628319,4.96278561,210.01,209.99,0.7]
[1758693628499,4.96278561,210.01,209.99,37.24]
[1758693628700,0.08,210.06,210.0,0.7]
[1758693628908,1.51028496,210.02,210.0,0.7]
[1758693629822,6.2710562,210.05,210.01,0.7]
[1758693630029,6.2710562,210.05,210.02,0.7]
[1758693630235,1.51028496,210.04,210.02,0.7]
[1758693630407,15.83043579,210.04,210.02,0.7]
[1758693630829,1.51028496,210.04,210.02,0.7]
[1758693631012,6.27135694,210.04,209.99,4.76203003]
[1758693631329,14.32015084,210.03,210.0,37.92]
[1758693631513,14.32015084,210.03,210.01,0.7]
[1758693631712,14.32015084,210.03,210.0,37.22]
[1758693631713,1.51028496,210.05,210.02,0.7]
[1758693632232,14.31946732,210.04,210.02,0.7]
[1758693632440,1.51028496,210.03,210.0,37.92]
[1758693632601,1.51028496,210.03,209.99,37.22]
[1758693632803,6.27172757,210.03,209.99,37.92]
[1758693633004,20.59119489,210.03,209.99,37.92]
[1758693633231,20.59119489,210.03,210.0,0.7]
[1758693633949,6.27172757,210.03,210.0,0.7]
[1758693634252,14.32083442,210.02,210.0,0.7]
[1758693635058,19.08233163,210.02,209.99,37.22]
[1758693635218,19.08233163,210.02,209.99,37.92]
[1758693635636,19.08233163,210.02,209.99,0.7]
[1758693635950,19.08233163,210.02,209.99,37.22]
[1758693636147,19.08233163,210.02,210.0,0.7]
[1758693636355,19.08233163,210.02,209.99,37.22]
[1758693636653,19.08233163,210.02,210.0,0.7]
[1758693637258,14.32083442,210.02,210.01,0.7]
[1758693637439,14.32083442,210.02,209.99,37.92]
[1758693637627,14.32083442,210.02,210.0,0.7]
[1758693637823,14.32083442,210.02,209.98,0.7]
[1758693638047,14.32083442,210.02,209.99,37.92]
[1758693638546,26.0,210.07,210.0,0.7]
[1758693638757,2.70274968,210.06,210.0,0.7]
[1758693638960,1.51028496,210.06,210.0,0.7]
[1758693639130,18.17219107,210.06,210.0,0.7]
[1758693639339,1.51028496,210.04,210.0,0.7]
[1758693639533,1.51028496,210.02,209.96,0.2]
[1758693639749,1.51028496,210.02,209.97,37.92]
[1758693639931,1.51028496,210.02,209.96,0.2]
[1758693639932,1.51028496,209.98,209.96,0.2]
[1758693642142,6.27274431,209.98,209.96,0.2]
[1758693642336,6.35274431,209.98,209.96,0.2]
[1758693642536,0.08,209.97,209.96,0.2]
[1758693643247,4.84258513,209.97,209.96,0.2]
[1758693643451,33.94561412,209.97,209.96,0.2]
[1758693645456,49.05149309,209.97,209.95,1e-08]
[1758693645638,26.0,209.94,209.91,0.2]
[1758693645843,1.51028496,209.92,209.91,0.2]
[1758693646045,2.70313988,209.92,209.91,0.2]
[1758693646448,30.61377015,209.92,209.91,0.2]
[1758693646839,3.10348519,209.92,209.91,0.9]
[1758693647040,1.51028496,209.93,209.91,0.9]
[1758693647245,1.51028496,209.93,209.92,0.7]
[1758693647436,1.19310137,209.94,209.92,0.7]
[1758693647631,1.51028496,209.94,209.93,0.7]
[1758693648041,2.70336907,209.94,209.93,0.7]
[1758693648634,1.19308411,209.94,209.93,0.7]
[1758693648950,1.51028496,209.96,209.93,0.7]
[1758693649160,7.46628375,209.95,209.94,0.7]
[1758693649661,7.46628375,209.95,209.92,0.7]
[1758693649866,1.51028496,209.93,209.91,0.2]
[1758693650046,1.19295998,209.92,209.91,0.2]
[1758693650443,2.70324494,209.92,209.91,0.2]
[1758693651138,7.46696445,209.92,209.91,0.2]
[1758693653339,9.37750346,209.92,209.91,0.2]
[1758693654553,10.23309171,209.92,209.91,0.2]
[1758693655166,10.31309171,209.92,209.91,0.2]
[1758693656235,26.0,209.9,209.89,0.2]
[1758693656440,29.55883319,209.9,209.89,0.2]
[1758693656635,34.4030066,209.9,209.89,0.2]
[1758693656840,48.73547202,209.9,209.89,0.2]
[1758693657364,26.0,209.86,209.77,0.2]
[1758693657675,2.36587321,209.78,209.77,0.2]
[1758693658459,3.55993679,209.78,209.77,0.87]
[1758693658646,7.13277186,209.78,209.77,0.87]
[1758693659268,7.13277186,209.78,209.77,0.2]
[1758693659473,14.33794537,209.79,209.77,0.2]
[1758693659636,2.36587321,209.78,209.77,0.87]
[1758693660045,2.36587321,209.78,209.77,0.2]
[1758693660861,2.36587321,209.78,209.75,0.1]
[1758693660862,26.0,209.76,209.75,0.1]
[1758693661069,3.56025718,209.76,209.75,0.1]
[1758693661366,2.36587321,209.76,209.75,0.77]
[1758693661863,26.0,209.81,209.75,0.77]
[1758693662048,14.33726015,209.8,209.75,0.77]
[1758693662249,16.70313336,209.8,209.75,5.53749318]
[1758693662440,2.36587321,209.81,209.76,0.67]
[1758693662644,4.76536367,209.85,209.76,0.67]
[1758693662946,2.36587321,209.81,209.76,5.43716567]
[1758693663154,2.36587321,209.81,209.77,0.67]
[1758693664245,4.76604408,209.82,209.77,0.67]
[1758693664446,2.36587321,209.82,209.77,0.67]
[1758693665043,4.76571675,209.84,209.77,5.43707905]
[1758693665251,2.36587321,209.81,209.78,0.67]
[1758693665468,2.36587321,209.8,209.78,0.67]
[1758693665676,2.36587321,209.8,209.79,0.67]
[1758693665850,10.2027958,209.84,209.79,0.67]
[1758693666056,2.36587321,209.8,209.75,42.0875015]
[1758693666571,4.76604783,209.82,209.76,0.67]
[1758693666750,2.36587321,209.81,209.76,0.67]
[1758693667277,40.58215704,209.87,209.76,0.67]
[1758693667278,2.36587321,209.83,209.76,0.67]
[1758693667873,23.90092204,209.9,209.76,0.67]
[1758693667874,11.90992675,209.91,209.8,2.36587321]
[1758693668066,2.36587321,209.87,209.81,0.67]
[1758693668367,1.19357769,209.9,209.82,44.3518631]
[1758693668368,2.36587321,209.89,209.82,44.3518631]
[1758693668763,2.36587321,209.89,209.83,0.67]
[1758693669244,28.36587321,209.9,209.83,0.67]
[1758693670053,28.36587321,209.9,209.83,5.43563981]
[1758693670255,28.36587321,209.9,209.84,0.67]
[1758693670854,7.13007832,209.9,209.84,0.67]
[1758693671079,2.36587321,209.89,209.84,0.67]
[1758693673447,7.13031098,209.89,209.84,0.67]
[1758693673870,4.76406404,209.91,209.84,5.43551981]
[1758693674073,2.36587321,209.92,209.85,3.06587321]
[1758693674279,7.12957069,209.93,209.86,16.66146722]
[1758693674573,7.12957069,209.93,209.87,0.7]
[1758693674778,7.12957069,209.93,209.88,37.22]
[1758693675175,7.12957069,209.93,209.89,0.7]
[1758693675473,7.12957069,209.93,209.9,0.7]
[1758693676252,2.36587321,209.93,209.91,0.7]
[1758693677362,2.36587321,209.93,209.89,0.7]
[1758693677561,2.36587321,209.93,209.9,0.7]
[1758693678474,7.12949143,209.93,209.9,0.7]
[1758693678672,7.12949143,209.93,209.91,0.7]
[1758693679180,2.36587321,209.92,209.91,0.7]
[1758693679894,2.36587321,209.93,209.91,0.7]
[1758693680176,2.36587321,209.93,209.92,0.7]
[1758693680390,2.36587321,209.97,209.92,5.46370184]
[1758693680547,4.76167801,210.01,209.93,37.88]
[1758693680752,4.76167801,210.01,209.94,0.66]
[1758693681156,2.36587321,209.99,209.94,0.66]
[1758693681355,4.76167801,210.01,209.94,0.66]
[1758693681356,2.36587321,210.0,209.94,0.66]
[1758693681576,2.36587321,210.01,209.94,0.66]
[1758693681769,2.36587321,210.0,209.94,0.66]
[1758693682287,1.19287912,209.99,209.95,18.35856628]
[1758693682452,2.36587321,210.01,209.96,0.66]
[1758693682653,1.19284156,210.0,209.96,0.66]
[1758693683683,1.19284156,210.0,209.94,0.66]
[1758693683684,2.36587321,209.99,209.94,0.66]
[1758693683883,3.5587823,209.98,209.95,29.62]
[1758693684185,2.36587321,209.99,209.96,0.66]
[1758693684384,1.19289189,209.98,209.96,0.66]
[1758693684682,1.19289189,209.98,209.97,0.66]
[1758693685084,2.36587321,209.99,209.97,0.66]
[1758693685568,2.36587321,209.99,209.98,0.66]
[1758693685771,1.19286495,209.99,209.98,0.66]
[1758693686770,12.18282409,210.04,209.98,31.42235831]
[1758693686771,0.2,210.04,209.98,31.42235831]
[1758693686974,0.2,210.04,210.0,13.59559401]
[1758693687168,0.2,210.04,210.01,37.2]
[1758693687381,0.2,210.04,210.01,37.86]
[1758693687575,0.2,210.04,210.02,0.66]
[1758693687776,0.2,210.04,210.03,0.66]
[1758693688987,0.2,210.04,210.03,14.25559401]
[1758693689719,0.2,210.04,210.03,56.21681859]
[1758693690584,0.2,210.04,210.03,58.5826918]
[1758693690974,0.2,210.04,210.03,51.45559401]
[1758693691192,2.56587321,210.04,209.98,0.66]
[1758693691383,2.36587321,210.01,209.98,0.66]
[1758693691693,2.36587321,210.01,209.99,37.86]
[1758693691870,2.36587321,210.02,209.99,37.86]
[1758693692066,2.56587321,210.04,210.0,0.66]
[1758693692271,2.56587321,210.04,210.01,0.66]
[1758693692962,2.56587321,210.04,209.99,41.96208128]
[1758693692963,0.2,210.04,210.02,0.66]
[1758693693175,0.2,210.04,210.03,37.86]
[1758693694284,0.2,210.04,210.03,53.82146722]
[1758693694485,0.2,210.04,210.03,56.21681859]
[1758693695884,0.2,210.04,210.03,51.45559401]
[1758693696687,0.2,210.04,210.03,19.01681859]
[1758693696881,0.2,210.04,210.03,0.66]
[1758693697084,7.32689385,210.04,209.98,0.66]
[1758693697285,0.2,210.04,210.0,13.59559401]
[1758693697587,0.2,210.04,210.03,13.59559401]
[1758693697787,0.2,210.04,210.03,50.89559401]
[1758693697980,0.2,210.04,210.03,56.31681859]
[1758693698299,0.2,210.04,210.03,56.35681859]
[1758693698470,0.2,210.04,210.03,19.01681859]
[1758693698787,0.2,210.04,210.03,56.35681859]
[1758693698980,0.2,210.04,210.03,19.01681859]
[1758693699183,0.2,210.04,210.03,56.33681859]
[1758693699390,0.2,210.04,210.03,14.25559401]
[1758693699578,0.2,210.04,210.03,51.57559401]
[1758693701088,0.2,210.04,210.03,56.33681859]
[1758693701292,0.2,210.04,210.03,58.7026918]
[1758693701993,0.2,210.04,210.03,21.3826918]
[1758693702181,0.2,210.04,210.03,58.6826918]
[1758693704793,1e-08,210.04,210.03,58.6826918]
[1758693706398,1e-08,210.04,210.03,37.3]
[1758693708293,1e-08,210.04,210.01,13.59559401]
[1758693708477,1e-08,210.04,209.99,13.59559401]
[1758693708675,1e-08,210.04,210.0,37.28]
[1758693708986,1e-08,210.04,210.0,37.94]
[1758693710283,1e-08,210.04,210.0,42.04182322]
[1758693710494,1e-08,210.04,210.01,0.66]
[1758693710691,1e-08,210.04,210.02,37.3]
[1758693711383,1e-08,210.04,210.03,0.68]
[1758693711788,1e-08,210.04,210.02,42.06144785]
[1758693711989,1e-08,210.04,210.02,42.74144785]
[1758693715478,1e-08,210.04,210.03,0.68]
[1758693716601,1e-08,210.04,210.03,5.44122458]
[1758693716994,1e-08,210.04,210.03,19.03681859]
[1758693717196,1e-08,210.04,210.03,14.27559401]
[1758693717786,1e-08,210.04,210.03,13.59559401]
[1758693717995,1e-08,210.04,210.03,37.22]
[1758693718392,1.19227756,210.04,210.03,37.22]
[1758693718992,1e-08,210.04,210.03,37.22]
[1758693719208,1.19227756,210.04,210.03,37.22]
[1758693719501,1.19227756,210.04,210.01,19.0372531]
[1758693719705,1e-08,210.04,210.02,37.88]
[1758693719893,1e-08,210.04,210.02,0.68]
[1758693720095,1e-08,210.04,210.03,37.2]
[1758693720291,1.27233907,210.04,209.98,0.68]
[1758693720510,1.19233906,210.03,209.98,0.68]
[1758693720715,6.03379035,210.02,209.95,13.59559401]
[1758693720892,2.70361668,210.01,209.96,37.22]
[1758693721091,1.19233906,210.0,209.96,37.22]
[1758693721307,1.19233906,209.99,209.96,37.9]
[1758693721509,1.19233906,209.98,209.93,13.59559401]
[1758693721715,1.19233906,209.97,209.94,37.9]
[1758693721909,16.74507951,210.02,209.95,0.68]
[1758693722213,1.19273141,210.01,209.95,0.68]
[1758693722413,1.19273141,210.0,209.96,37.22]
[1758693722590,1.19273141,209.99,209.97,0.68]
[1758693722783,1.19273141,209.98,209.96,38.73127762]
[1758693723003,0.08,210.03,209.96,39.41127762]
[1758693723207,5.95433842,210.02,209.96,39.41127762]
[1758693723505,1.19266231,210.01,209.97,37.2]
[1758693723704,1.19266231,210.0,209.97,37.88]
[1758693723905,1.19266231,209.99,209.97,37.88]
[1758693724107,1.19266231,209.98,209.97,50.79559401]
[1758693724607,1.19266231,210.03,209.97,56.23795858]
[1758693724807,1.19266231,210.02,209.97,56.23795858]
[1758693724996,1.19266231,210.01,209.98,0.68]
[1758693725197,1.19266231,210.0,209.99,0.68]
[1758693725692,1.19266231,210.0,209.97,50.79559401]
[1758693725898,1.19266231,209.99,209.98,0.68]
[1758693726217,1.59127763,210.04,209.98,0.68]
[1758693726398,1.19260752,210.03,209.98,0.68]
[1758693726711,1.19260752,210.02,209.98,5.44230536]
[1758693726916,1.19260752,210.01,209.98,5.44230536]
[1758693727108,4.76104121,210.04,209.98,5.44230536]
[1758693727421,1.19259062,210.03,209.98,5.44230536]
[1758693727588,1.19259062,210.02,209.99,0.68]
[1758693727911,4.76104121,210.04,210.0,37.2]
[1758693727912,1.19259062,210.01,210.0,37.2]
[1758693728287,1e-08,210.04,210.0,42.6418857]
[1758693728586,1e-08,210.04,210.01,0.68]
[1758693728913,1.19250332,210.04,210.01,0.68]
[1758693729104,1.19250331,210.03,210.01,0.68]
[1758693729295,1e-08,210.04,210.01,0.68]
[1758693729821,1e-08,210.04,210.01,6.95274721]
[1758693730002,1e-08,210.04,210.02,0.68]
[1758693730188,1e-08,210.04,210.03,37.18]
[1758693731501,1.19243495,210.04,210.03,37.18]
[1758693731708,1.19243495,210.04,210.03,37.86]
[1758693731913,1.19243495,210.04,210.03,56.21681859]
[1758693732101,1e-08,210.04,210.03,57.72809621]
[1758693732287,1.19224498,210.12,210.04,13.59559401]
[1758693732494,1.19224498,210.11,210.08,15.10687163]
[1758693732792,1.51127762,210.2,210.11,13.59559401]
[1758693732999,1.19188986,210.19,210.12,37.98]
[1758693733212,1.19188986,210.18,210.14,1.51127762]
[1758693733514,4.75714761,210.21,210.15,38.01]
[1758693733515,1.19188986,210.17,210.15,38.01]
[1758693733811,1.19188986,210.16,210.15,37.3]
[1758693734109,4.75715331,210.21,210.15,37.3]
[1758693734298,1.19162457,210.2,210.16,2.22127762]
[1758693734501,26.0,210.23,210.16,2.22127762]
[1758693734502,26.0,210.23,210.17,0.71]
[1758693734701,1.19157846,210.22,210.18,37.34]
[1758693734911,1.19157846,210.21,210.19,0.71]
[1758693735115,1.19157846,210.2,210.18,37.34]
[1758693735305,18.15971028,210.23,210.19,37.34]
[1758693735512,1.19166968,210.22,210.19,37.34]
[1758693735699,4.75714761,210.21,210.19,38.05]
[1758693735892,1.19166968,210.2,210.19,38.05]
[1758693736208,26.0,210.23,210.19,38.05]
[1758693736507,4.75646879,210.24,210.2,0.71]
[1758693736508,1.19156701,210.22,210.2,0.71]
[1758693736686,4.75646879,210.24,210.21,0.71]
[1758693736889,1.19153246,210.23,210.22,38.09]
[1758693737603,1.19153246,210.24,210.22,38.09]
[1758693737804,1.19153246,210.23,210.22,37.38]
[1758693738103,4.85624688,210.25,210.22,37.38]
[1758693738298,2.78271447,210.24,210.16,13.59559401]
[1758693738608,2.78271447,210.24,210.16,1.51127762]
[1758693738609,1.19143685,210.23,210.16,1.51127762]
[1758693738815,1.19143685,210.23,210.17,37.36]
[1758693739818,5.94832106,210.23,210.17,37.36]
[1758693740110,4.75688421,210.23,210.18,0.71]
[1758693740688,4.75688421,210.23,210.17,37.36]
[1758693740889,4.75688421,210.23,210.17,38.06]
[1758693741304,4.75688421,210.23,210.18,37.36]
[1758693741705,4.75688421,210.23,210.18,38.06]
[1758693742707,4.75688421,210.23,210.19,0.7]
[1758693743218,4.75688421,210.23,210.2,37.34]
[1758693743716,16.72862183,210.23,210.21,37.34]
[1758693743919,16.72862183,210.23,210.17,0.7]
[1758693743920,16.64862183,210.23,210.17,0.7]
[1758693744419,16.64862183,210.23,210.18,37.32]
[1758693744610,16.64862183,210.23,210.18,38.02]
[1758693746506,16.64862183,210.23,210.18,37.32]
[1758693746705,16.64862183,210.23,210.19,0.7]
[1758693746905,16.64862183,210.23,210.2,0.7]
[1758693747722,16.64862183,210.23,210.18,38.02]
[1758693747900,16.64862183,210.23,210.19,0.7]
[1758693748106,16.64862183,210.23,210.2,37.32]
[1758693748925,16.64862183,210.23,210.2,38.02]
[1758693748926,4.75688421,210.23,210.2,38.02]
[1758693750309,4.75688421,210.23,210.2,37.32]
[1758693750523,4.75646879,210.24,210.2,37.32]
[1758693751128,4.75646879,210.24,210.2,38.02]
[1758693751324,4.75646879,210.24,210.21,0.7]
[1758693751626,4.75646879,210.24,210.2,38.02]
[1758693751928,4.75646879,210.24,210.21,0.7]
[1758693752110,4.75646879,210.24,210.22,0.7]
[1758693752314,4.75646879,210.24,210.2,38.02]
[1758693752523,16.64764078,210.24,210.2,38.02]
[1758693752828,16.64764078,210.24,210.2,37.32]
[1758693753004,16.64764078,210.24,210.21,0.7]
[1758693753830,4.75646879,210.24,210.2,37.32]
[1758693754021,4.75646879,210.24,210.22,0.7]
[1758693754225,4.75646879,210.24,210.23,0.7]
[1758693754610,0.1,210.25,210.23,0.7]
[1758693754812,0.1,210.25,210.24,37.24]
[1758693755021,0.1,210.25,210.24,37.94]
[1758693757437,4.85624256,210.25,210.24,37.94]
[1758693758121,4.85624256,210.25,210.21,0.7]
[1758693758327,1.59127762,210.24,210.2,22.38]
[1758693758622,16.64843266,210.23,210.19,22.38]
[1758693758826,16.64843266,210.23,210.19,23.08]
[1758693759023,16.64843266,210.23,210.2,0.7]
[1758693759228,16.64843266,210.23,210.21,0.7]
[1758693759418,16.64843266,210.23,210.19,0.7]
[1758693759611,16.64843266,210.23,210.2,0.7]
[1758693760322,16.64843266,210.23,210.17,0.7]
[1758693760529,1.1916338,210.22,210.18,37.26]
[1758693760730,18.16129426,210.21,210.18,37.26]
[1758693760928,18.16129426,210.21,210.16,0.7]
[1758693761137,1.51127762,210.19,210.13,0.7]
[1758693761524,16.65001664,210.21,210.13,0.7]
[1758693761725,1.51127762,210.18,210.13,0.7]
[1758693761926,1.51127762,210.18,210.14,0.7]
[1758693762232,4.758053,210.17,210.14,0.7]
[1758693762432,16.65318551,210.17,210.12,37.26]
[1758693762642,16.65318551,210.17,210.12,37.96]
[1758693762823,16.65318551,210.17,210.1,1.51127762]
[1758693763027,16.65318551,210.17,210.11,37.96]
[1758693763542,1.51127762,210.16,210.11,0.7]
[1758693763749,1.51127762,210.16,209.93,2.48741323]
[1758693763750,1.51127762,210.13,210.05,14.29559401]
[1758693763950,1.51127762,210.09,210.07,37.24]
[1758693764244,4.76009139,210.08,210.07,37.26]
[1758693765019,4.76009139,210.08,210.07,37.96]
[1758693766020,4.75973178,210.1,210.07,37.96]
[1758693766350,26.0,210.11,210.08,0.7]
[1758693766646,26.0,210.09,210.08,0.7]
[1758693766840,26.0,210.09,210.07,37.26]
[1758693767339,26.0,210.09,210.08,0.7]
[1758693768935,1.51127762,210.14,210.08,0.7]
[1758693769122,15.8252791,210.16,210.09,13.59559401]
[1758693769323,1.51127762,210.16,210.1,0.7]
[1758693769517,1.51127762,210.16,210.11,37.26]
[1758693769717,1.51127762,210.17,210.12,0.7]
[1758693769917,1.51127762,210.17,210.11,37.26]
[1758693769918,1.51127762,210.17,210.13,0.7]
[1758693770129,26.0,210.15,210.14,0.7]
[1758693770529,11.89260127,210.22,210.14,0.7]
[1758693770849,26.0,210.18,210.14,0.7]
[1758693771018,26.0,210.18,210.15,0.69]
[1758693771353,26.0,210.18,210.16,37.97]
[1758693771728,26.0,210.18,210.17,37.28]
[1758693771941,27.191712,210.18,210.17,37.28]
[1758693772263,31.94953862,210.18,210.17,37.28]
[1758693772449,31.94953862,210.18,210.16,37.26]
[1758693772645,2.70298962,210.17,210.16,37.26]
[1758693773632,1.191712,210.17,210.16,37.26]
[1758693773838,5.949765,210.17,210.16,37.26]
[1758693775045,26.0,210.14,210.11,0.69]
[1758693775353,26.0,210.14,210.12,37.95]
[1758693775524,26.0,210.14,210.13,0.69]
[1758693775726,27.19181619,210.14,210.13,0.69]
[1758693776840,31.95054846,210.14,210.13,0.69]
[1758693777432,31.95054846,210.14,210.13,37.93]
[1758693777754,27.19181619,210.14,210.13,37.93]
[1758693778445,1.19181619,210.14,210.13,37.93]
[1758693778751,26.0,210.15,210.13,37.93]
[1758693779047,26.0,210.15,210.14,0.69]
[1758693779243,27.191756,210.15,210.14,0.69]
[1758693780227,1.191756,210.15,210.14,0.69]
[1758693780437,31.95026182,210.15,210.14,37.22]
[1758693780634,34.30953368,210.15,210.14,37.22]
[1758693780942,3.55102786,210.15,210.14,37.91]
[1758693781344,29.55102786,210.15,210.14,37.22]
[1758693781545,34.30953368,210.15,210.14,37.22]
[1758693781946,34.30953368,210.15,210.13,37.22]
[1758693782132,3.55102786,210.14,210.13,37.22]
[1758693782646,3.55102786,210.14,210.0,20.0]
[1758693782647,26.0,210.1,210.03,0.69]
[1758693782848,2.35927186,210.04,210.03,37.91]
[1758693783942,2.35927186,210.05,210.03,37.91]
[1758693784135,2.35927186,210.06,210.04,0.69]
[1758693784336,30.76003698,210.09,210.04,0.69]
[1758693784337,2.35927186,210.08,210.04,0.69]
[1758693784538,2.35927186,210.09,210.04,0.69]
[1758693784738,26.0,210.11,210.04,0.69]
[1758693784938,2.35927186,210.1,210.04,0.69]
[1758693785635,2.35927186,210.1,210.05,4.76077124]
[1758693785836,2.35927186,210.1,210.06,0.69]
[1758693786051,2.35927186,210.1,210.07,37.28]
[1758693786255,2.35927186,210.1,210.08,0.69]
[1758693786950,30.75918669,210.12,210.07,37.28]
[1758693786951,26.0,210.12,210.09,0.69]
[1758693787128,2.35927186,210.12,210.09,0.69]
[1758693787334,28.35927186,210.12,210.09,0.69]
[1758693787848,26.0,210.13,210.1,4.75963826]
[1758693788151,26.0,210.13,210.11,37.97]
[1758693788346,0.08,210.19,210.12,0.69]
[1758693788347,14.31195286,210.19,210.12,0.69]
[1758693788524,2.35927186,210.16,210.12,0.69]
[1758693789655,2.35927186,210.16,210.12,5.44898595]
[1758693789856,2.35927186,210.16,210.13,0.69]
[1758693790155,26.0,210.17,210.14,0.69]
[1758693790347,4.75814637,210.17,210.12,0.69]
[1758693790543,28.35927186,210.14,210.09,0.69]
[1758693790742,28.35927186,210.14,210.1,37.26]
[1758693790940,26.0,210.14,210.1,37.26]
[1758693791141,2.35927186,210.13,210.1,37.26]
[1758693791649,26.0,210.11,210.1,37.26]
[1758693792935,26.0,210.11,210.1,37.95]
[1758693793459,26.0,210.11,210.06,13.59559401]
[1758693793460,2.35927186,210.11,210.06,0.69]
[1758693793755,2.35927186,210.11,210.07,38.0]
[1758693793954,2.35927186,210.11,210.08,37.26]
[1758693794549,2.35927186,210.11,210.09,0.72]
[1758693794760,2.35927186,210.11,210.1,0.72]
[1758693796854,2.35927186,210.11,210.08,37.98]
[1758693797053,2.35927186,210.11,210.09,0.72]
[1758693797659,2.35927186,210.11,210.1,0.72]
[1758693797839,2.35927186,210.11,210.08,37.26]
[1758693798037,2.35927186,210.09,210.08,37.26]
[1758693798232,26.0,210.08,210.04,0.72]
[1758693798553,2.35927186,210.05,210.02,0.72]
[1758693798752,26.08,210.08,210.06,37.24]
[1758693798938,2.35927186,210.07,210.06,37.24]
[1758693799737,7.11958984,210.07,210.06,37.24]
[1758693801029,26.0,210.04,210.02,0.72]
[1758693801226,28.35927186,210.04,210.03,37.9]
[1758693802860,4.76054701,210.06,210.03,37.9]
[1758693803035,2.35927186,210.04,210.03,37.9]
[1758693803427,2.35927186,210.04,210.03,0.68]
[1758693803738,2.35927186,210.04,210.03,37.88]
[1758693804038,2.35927186,210.06,210.03,37.88]
[1758693804352,26.0,210.04,210.03,37.2]
[1758693804741,2.35927186,210.08,210.03,42.64117623]
[1758693804943,2.35927186,210.09,210.04,0.68]
[1758693805167,2.35927186,210.07,210.03,13.59559401]
[1758693805462,2.35927186,210.07,210.05,37.88]
[1758693805640,2.35927186,210.07,210.06,0.68]
[1758693806948,28.35927186,210.07,210.06,0.68]
[1758693807355,26.0,210.07,210.06,0.68]
[1758693811677,28.35927186,210.07,210.06,37.88]
[1758693812176,33.11958984,210.07,210.06,37.2]